fUST/lending_fUST_20260201
["ID","MTS","AMOUNT","RATE_DAILY","PERIOD"]
[404158345,1769886643992,-234.67,0.00035064,60]
[404158346,1769886644018,-225.28,0.00035164,60]
[404158347,1769886644043,-3538.603771,0.00035164,60]
[404158348,1769886644074,-2477.022639,0.00035164,60]
[404158349,1769886644097,-209.07,0.000352,120]
[404158350,1769886644122,-562.32,0.00035342,32]
[404158351,1769886644149,-225.28,0.00035364,60]
[404158352,1769886644173,-710.0,0.00035404,11]
[404158353,1769886644199,-225.28,0.00035464,60]
[404158354,1769886644223,-2643.186,0.00035469,2]
[404158355,1769886644249,-225.28,0.00035564,60]
[404158356,1769886644275,-2643.186,0.00035569,2]
[404158357,1769886644302,-238.11817,0.000356,120]
[404158358,1769886644325,-1001.860426,0.000357,22]
[404158359,1769886644350,-709.0,0.00035722,11]
[404158360,1769886644376,-166.79,0.000358,2]
[404158361,1769886644402,-694.56455536,0.00035821,120]
[404158362,1769886644427,-2000.0,0.00035858,120]
[404158363,1769886644451,-400.0,0.00035954,11]
[404158364,1769886644476,-169.9437508,0.00036,120]
[404158365,1769886644500,-22119.61013383,0.00036061,30]
[404158366,1769886644524,-200.0,0.00036063,10]
[404158367,1769886644554,-225.28,0.00036064,60]
[404158368,1769886644578,-1896.32290497,0.0003609,2]
[404158369,1769886644603,-605.5062385,0.00036161,2]
[404158370,1769886644627,-605.5062385,0.00036161,2]
[404158371,1769886644653,-605.5062385,0.00036161,2]
[404158372,1769886644678,-605.5062385,0.00036161,2]
[404158373,1769886644702,-605.5062385,0.00036161,2]
[404158374,1769886644727,-605.5062385,0.00036161,2]
[404158375,1769886644753,-225.28,0.00036164,60]
[404158376,1769886644777,-562.32,0.00036164,33]
[404158377,1769886644804,-1000.0,0.000362,22]
[404158378,1769886644830,-225.28,0.00036264,60]
[404158379,1769886644858,-1000.0,0.0003628,30]
[404158380,1769886644885,-1000.0,0.0003628,30]
[404158381,1769886644913,-579.0,0.0003628,30]
[404158382,1769886644939,-225.28,0.00036364,60]
[404158383,1769886644963,-3237.79994856,0.00036375,3]
[404158384,1769886644989,-2635.43981299,0.00036385,3]
[404158385,1769886645108,-3264.0415311,0.00036385,3]
[404158386,1769886645134,-6844.92836413,0.00036385,3]
[404158387,1769886645163,-225.28,0.00036464,60]
[404158388,1769886645189,-225.28,0.00036564,60]
[404158389,1769886645216,-225.28,0.00036664,60]
[404158390,1769886645243,-1000.0,0.000367,22]
[404158391,1769886645273,-2000.0,0.0003676,20]
[404158392,1769886645306,-225.28,0.00036764,60]
[404158393,1769886645333,-974.45546986,0.00036839,20]
[404158394,1769886645359,-637.72277349,0.00036839,20]
[404158395,1769886645386,-225.28,0.00036864,60]
[404158397,1769886645414,-162.0,0.000369,120]
[404158398,1769886645442,-188.0,0.00036903,120]
[404158399,1769886645468,-364.0,0.00036903,120]
[404158401,1769886645499,-225.28,0.00036964,60]
[404158402,1769886645526,-562.32,0.00036986,34]
[404158404,1769886645555,-19094.1094417,0.00037,15]
[404158405,1769886645581,-160.0,0.00037,120]
[404158406,1769886645607,-160.0,0.00037,3]
[404158408,1769886645634,-1041.66666667,0.00037,3]
[404158410,1769886645663,-225.28,0.00037064,60]
[404158411,1769886645691,-234.67,0.00037064,60]
[404158412,1769886645720,-225.28,0.00037164,60]
[404158413,1769886645749,-234.67,0.00037164,60]
[404158414,1769886645775,-3237.79994856,0.00037246,3]
[404158416,1769886645802,-27503.46867273,0.00037257,15]
[404158417,1769886645829,-225.28,0.00037264,60]
[404158418,1769886645857,-238.11817,0.000373,120]
[404158420,1769886645884,-225.28,0.00037364,60]
[404158422,1769886645911,-234.67,0.00037364,60]
[404158423,1769886645939,-225.28,0.00037464,60]
[404158424,1769886645968,-162.0,0.00037523,120]
[404158426,1769886645996,-182.0,0.00037523,120]
[404158429,1769886646022,-225.28,0.00037564,60]
[404158431,1769886646052,-225.28,0.00037664,60]
[404158433,1769886646080,-225.28,0.00037764,60]
[404158435,1769886646105,-166.8,0.000378,2]
[404158438,1769886646129,-562.32,0.00037808,35]
[404158442,1769886646155,-736.51811911,0.00037821,120]
[404158445,1769886646180,-225.28,0.00037864,60]
[404158448,1769886646207,-225.28,0.00037964,60]
[404158452,1769886646232,-707.720754,0.00037977,60]
[404158454,1769886646256,-730.05,0.00038,30]
[404158455,1769886646281,-225.28,0.00038064,60]
[404158456,1769886646307,-225.28,0.00038164,60]
[404158457,1769886646334,-225.28,0.00038264,60]
[404158458,1769886646359,-225.28,0.00038364,120]
[404158459,1769886646384,-225.28,0.00038464,120]
[404158460,1769886646414,-225.28,0.00038564,120]
[404158461,1769886646441,-2000.0,0.00038598,120]
[404158462,1769886646467,-157.34,0.000386,7]
[404158464,1769886646492,-562.32,0.0003863,36]
[404158465,1769886646519,-225.28,0.00038664,120]
[404158466,1769886646545,-162.0,0.00038745,120]
[404158467,1769886646573,-188.0,0.00038748,120]
[404158468,1769886646597,-364.0,0.00038748,120]
[404158469,1769886646622,-225.28,0.00038764,120]
[404158470,1769886646646,-730.05,0.000388,30]
[404158471,1769886646671,-225.28,0.00038864,120]
[404158472,1769886646696,-155.88,0.000389,7]
[404158473,1769886646722,-225.28,0.00038964,120]
[404158474,1769886646747,-407.54018358,0.00038995,2]
[404158475,1769886646770,-238.11817,0.00039,120]
[404158476,1769886646795,-469.04389056,0.00039,120]
[404158477,1769886646825,-225.28,0.00039064,120]
[404158478,1769886646851,-225.28,0.00039164,120]
[404158479,1769886646878,-225.28,0.00039264,120]
[404158480,1769886646905,-225.28,0.00039364,120]
[404158481,1769886646931,-162.0,0.00039399,120]
[404158482,1769886646956,-182.0,0.00039399,120]
[404158483,1769886646982,-562.32,0.00039452,37]
[404158484,1769886647008,-225.28,0.00039464,120]
[404158485,1769886647034,-225.28,0.00039564,120]
[404158486,1769886647062,-225.28,0.00039664,120]
[404158487,1769886647087,-225.28,0.00039764,120]
[404158488,1769886647111,-403.205,0.00039772,55]
[404158489,1769886647137,-778.47168285,0.00039821,120]
[404158490,1769886647163,-225.28,0.00039864,120]
[404158491,1769886647189,-1000.0,0.00039908,60]
[404158492,1769886647214,-1000.0,0.00039908,60]
[404158493,1769886647240,-1000.0,0.00039908,60]
[404158494,1769886647264,-160.0,0.00039945,120]
[404158495,1769886647377,-225.28,0.00039964,120]
[404158496,1769886647403,-2837.55897655,0.0004,120]
[404158497,1769886647428,-168.32106538,0.0004,120]
[404158498,1769886647454,-166.8,0.0004,2]
[404158499,1769886647480,-225.28,0.00040064,120]
[404158500,1769886647505,-225.28,0.00040164,120]
[404158501,1769886647531,-225.28,0.00040264,120]
[404158502,1769886647556,-562.32,0.00040273,38]
[404158503,1769886647582,-225.28,0.00040364,120]
[404158504,1769886647608,-225.28,0.00040464,120]
[404158505,1769886647636,-225.28,0.00040564,120]
[404158506,1769886647660,-3237.79994856,0.0004059,3]
[404158507,1769886647686,-730.05,0.000406,30]
[404158508,1769886647712,-225.28,0.00040664,120]
[404158509,1769886647738,-162.0,0.00040682,120]
[404158510,1769886647764,-188.0,0.00040685,120]
[404158511,1769886647790,-364.0,0.00040685,120]
[404158512,1769886647817,-238.11817,0.000407,120]
[404158513,1769886647845,-225.28,0.00040764,120]
[404158514,1769886647872,-225.28,0.00040864,120]
[404158515,1769886647898,-225.28,0.00040964,120]
[404158516,1769886647926,-633.6,0.00040993,120]
[404158517,1769886647952,-730.05,0.00041,30]
[404158518,1769886647980,-225.28,0.00041064,120]
[404158519,1769886648005,-562.32,0.00041095,39]
[404158520,1769886648031,-948.28,0.00041096,120]
[404158521,1769886648058,-367.20317245,0.00041096,31]
[404158522,1769886648084,-225.28,0.00041164,120]
[404158523,1769886648110,-225.28,0.00041264,120]
[404158524,1769886648134,-2000.0,0.00041338,120]
[404158525,1769886648160,-225.28,0.00041364,120]
[404158526,1769886648184,-182.0,0.00041369,120]
[404158527,1769886648210,-225.28,0.00041464,120]
[404158528,1769886648235,-225.28,0.00041564,120]
[404158529,1769886648260,-225.28,0.00041664,120]
[404158530,1769886648286,-225.28,0.00041764,120]
[404158531,1769886648317,-820.4252466,0.00041821,120]
[404158532,1769886648343,-225.28,0.00041864,120]
[404158533,1769886648368,-562.32,0.00041917,40]
[404158534,1769886648395,-225.28,0.00041964,120]
[404158535,1769886648423,-225.28,0.00042064,120]
[404158536,1769886648449,-225.28,0.00042164,120]
[404158537,1769886648475,-2541.5114,0.00042192,30]
[404158538,1769886648502,-225.28,0.00042264,120]
[404158539,1769886648529,-225.28,0.00042364,120]
[404158540,1769886648558,-238.11817,0.000424,120]
[404158541,1769886648584,-378.942317,0.00042434,30]
[404158542,1769886648609,-378.942317,0.00042434,30]
[404158543,1769886648635,-378.942317,0.00042434,30]
[404158544,1769886648661,-378.942317,0.00042434,30]
[404158545,1769886648686,-378.942317,0.00042434,30]
[404158546,1769886648712,-225.28,0.00042464,120]
[404158547,1769886648739,-234.67,0.00042564,120]
[404158548,1769886648767,-225.28,0.00042564,120]
[404158549,1769886648790,-194.7961003,0.00042571,30]
[404158550,1769886648818,-189.9503656,0.00042571,30]
[404158551,1769886648843,-343.1686076,0.00042571,30]
[404158552,1769886648868,-194.7961003,0.00042571,30]
[404158553,1769886648895,-234.67,0.00042664,120]
[404158554,1769886648922,-225.28,0.00042664,120]
[404158555,1769886648951,-162.0,0.00042716,120]
[404158556,1769886648979,-188.0,0.00042719,120]
[404158557,1769886649012,-364.0,0.00042719,120]
[404158558,1769886649038,-562.32,0.00042739,41]
[404158559,1769886649067,-234.67,0.00042764,120]
[404158560,1769886649092,-225.28,0.00042764,120]
[404158561,1769886649122,-155.3532582,0.00042845,30]
[404158562,1769886649148,-234.67,0.00042864,120]
[404158563,1769886649176,-225.28,0.00042864,120]
[404158564,1769886649202,-234.67,0.00042964,120]
[404158565,1769886649227,-225.28,0.00042964,120]
[404158566,1769886649250,-1041.66666667,0.00043,30]
[404158567,1769886649277,-234.67,0.00043064,120]
[404158568,1769886649305,-225.28,0.00043064,120]
[404158569,1769886649331,-234.67,0.00043164,120]
[404158570,1769886649359,-225.28,0.00043164,120]
[404158571,1769886649386,-235.15209359,0.00043264,120]
[404158572,1769886649413,-226.08209359,0.00043264,120]
[404158573,1769886649437,-232.71,0.0004332,120]
[404158574,1769886649546,-378.942317,0.00043393,30]
[404158575,1769886649573,-378.942317,0.00043393,30]
[404158576,1769886649602,-378.942317,0.00043393,30]
[404158577,1769886649628,-378.942317,0.00043393,30]
[404158578,1769886649652,-378.942317,0.00043393,30]
[404158579,1769886649676,-378.942317,0.00043393,30]
[404158580,1769886649701,-378.942317,0.00043393,30]
[404158581,1769886649727,-378.942317,0.00043393,30]
[404158582,1769886649751,-378.942317,0.00043393,30]
[404158583,1769886649776,-378.942317,0.00043393,30]
[404158584,1769886649802,-378.942317,0.00043393,30]
[404158585,1769886649827,-378.942317,0.00043393,30]
[404158586,1769886649852,-194.7961003,0.00043393,30]
[404158587,1769886649876,-257.3950646,0.00043393,30]
[404158588,1769886649902,-194.7961003,0.00043393,30]
[404158589,1769886649926,-194.5782368,0.00043393,30]
[404158590,1769886649950,-182.0,0.00043437,120]
[404158591,1769886649978,-200.0,0.00043499,30]
[404158592,1769886650003,-562.32,0.00043561,42]
[404158593,1769886650030,-862.37881035,0.00043821,120]
[404158594,1769886650060,-1000.0,0.00043899,60]
[404158595,1769886650087,-1000.0,0.00043899,60]
[404158596,1769886650114,-1000.0,0.00043899,60]
[404158597,1769886650141,-715.0,0.00043899,60]
[404158598,1769886650167,-353.860377,0.00043954,60]
[404158599,1769886650191,-5443.2,0.00044,14]
[404158600,1769886650216,-2000.0,0.00044077,120]
[404158601,1769886650240,-238.11817,0.000441,120]
[404158602,1769886650265,-562.32,0.00044383,43]
[404158603,1769886650289,-162.0,0.00044852,120]
[404158604,1769886650315,-364.0,0.00044855,120]
[404158605,1769886650340,-562.32,0.00045205,44]
[404158606,1769886650364,-16188.9997428,0.0004543,3]
[404158607,1769886650390,-90755.40651247,0.0004544,30]
[404158608,1769886650428,-799.2,0.0003676,3]
[404158609,1769886650437,-799.2,0.0003676,3]
[404158610,1769886650447,-799.2,0.0003676,3]
[404158611,1769886650456,-799.2,0.0003676,3]
[404158612,1769886650465,-799.2,0.0003676,3]
[404158613,1769886650475,-799.2,0.0003676,3]
[404158614,1769886650484,-799.2,0.0003676,3]
[404158615,1769886650493,-799.2,0.0003676,3]
[404158616,1769886650503,-799.2,0.0003676,3]
[404158617,1769886650512,-799.2,0.0003676,3]
[404158618,1769886650521,-799.2,0.0003676,3]
[404158619,1769886650530,-799.2,0.0003676,3]
[404158620,1769886650539,-799.2,0.0003676,3]
[404158621,1769886650549,-799.2,0.0003676,3]
[404158622,1769886650562,-799.2,0.0003676,3]
[404158623,1769886650571,-799.2,0.0003676,3]
[404158624,1769886650581,-799.2,0.0003676,3]
[404158625,1769886650590,-799.2,0.0003676,3]
[404158626,1769886650600,-799.2,0.0003676,3]
[404158627,1769886650609,-799.2,0.0003676,3]
[404158628,1769886650618,-799.2,0.0003676,3]
[404158629,1769886650627,-799.2,0.0003676,3]
[404158630,1769886650636,-799.2,0.0003676,3]
[404158631,1769886650645,-799.21473812,0.0003676,3]
[404158632,1769886650654,-579.05187674,0.0003676,14]
[404158633,1769886650664,-150.0,0.0003676,2]
[404158634,1769886650672,-500.0,0.0003676,2]
[404158635,1769886650681,-500.0,0.0003676,2]
[404158636,1769886650690,-500.0,0.0003676,2]
[404158637,1769886650700,-553.78358782,0.0003676,2]
[404158638,1769886650709,-500.0,0.0003676,14]
[404158639,1769886650718,-500.0,0.0003676,14]
[404158640,1769886650727,-500.0,0.0003676,14]
[404158641,1769886650737,-350.82291191,0.0003676,14]
[404158642,1769886650764,-542.81095939,0.00016633,2]
[404158643,1769886650775,-149.17708809,0.0003676,14]
[404158644,1769886650785,-179.19793153,0.0003676,14]
[404158645,1769886650795,-500.0,0.0003676,7]
[404158646,1769886650810,-500.0,0.0003676,7]
[404158647,1769886650820,-500.0,0.0003676,7]
[404158648,1769886650829,-500.0,0.0003676,7]
[404158649,1769886650838,-500.0,0.0003676,7]
[404158650,1769886650847,-400.0,0.0003676,10]
[404158651,1769886650856,-699.3888609,0.0003676,2]
[404158652,1769886650865,-605.5062385,0.0003676,2]
[404158653,1769886650874,-605.5062385,0.0003676,2]
[404158654,1769886650884,-605.5062385,0.0003676,2]
[404158655,1769886650894,-58110.29177494,0.0004544,30]
[404158656,1769886651019,-161.0,0.0003752,120]
[404158657,1769886651029,-161.0,0.00039396,120]
[404158658,1769886651038,-161.0,0.00041366,120]
[404158659,1769886651048,-891.81438009,0.0004544,30]
[404158660,1769886651078,-600.42145851,0.0004544,30]
[404158661,1769886651089,-591.40091144,0.0004544,30]
[404158662,1769886651099,-57979.69616255,0.0004544,30]
[404158663,1769886651109,-933.3653074,0.00045509,2]
[404158664,1769886651119,-904.33237409,0.00045821,120]
[404158665,1769886651128,-562.32,0.00046027,45]
[404158666,1769886651137,-1815.07,0.0004625,13]
[404158667,1769886651147,-671.42173629,0.0004655,120]
[404158668,1769886651156,-500.0,0.00046575,120]
[404158669,1769886651165,-251.93958832,0.00046575,120]
[404158670,1769886651175,-2000.0,0.00046817,120]
[404158671,1769886651184,-562.32,0.00046849,46]
[404158672,1769886651193,-633.6,0.00046976,120]
[404158673,1769886651202,-603.15,0.00047371,13]
[404158674,1769886651211,-562.32,0.00047671,47]
[404158675,1769886651220,-946.28593784,0.00047821,120]
[404158676,1769886651229,-166.79,0.00048,2]
[404158677,1769886651238,-224.92,0.00048193,13]
[404158678,1769886651247,-1000.0,0.00048289,120]
[404158679,1769886651255,-1000.0,0.00048289,120]
[404158680,1769886651264,-1000.0,0.00048289,120]
[404158681,1769886651273,-562.32,0.00048493,48]
[404158682,1769886651282,-8296.61,0.00049015,13]
[404158683,1769886651291,-724.51588192,0.00049051,2]
[404158684,1769886651303,-262.79336981,0.00049315,120]
[404158685,1769886651312,-562.32,0.00049315,49]
[404158686,1769886651321,-299.0,0.00049315,120]
[404158687,1769886651330,-299.0,0.00049315,120]
[404158688,1769886651340,-299.0,0.00049315,120]
[404158689,1769886651349,-299.0,0.00049315,120]
[404158690,1769886651359,-299.0,0.00049315,120]
[404158691,1769886651368,-299.0,0.00049315,120]
[404158692,1769886651378,-299.0,0.00049315,120]
[404158693,1769886651387,-299.0,0.00049315,120]
[404158694,1769886651396,-299.0,0.00049315,120]
[404158695,1769886651405,-299.0,0.00049315,120]
[404158696,1769886651414,-299.0,0.00049315,120]
[404158697,1769886651423,-299.0,0.00049315,120]
[404158698,1769886651432,-299.0,0.00049315,120]
[404158699,1769886651441,-299.0,0.00049315,120]
[404158700,1769886651450,-299.0,0.00049315,120]
[404158701,1769886651459,-299.0,0.00049315,120]
[404158702,1769886651546,-644.0,0.00049315,120]
[404158703,1769886651559,-644.0,0.00049315,120]
[404158704,1769886651568,-299.0,0.00049315,120]
[404158705,1769886651577,-299.0,0.00049315,120]
[404158706,1769886651587,-299.0,0.00049315,120]
[404158707,1769886651596,-299.0,0.00049315,120]
[404158708,1769886651605,-299.0,0.00049315,120]
[404158709,1769886651614,-299.0,0.00049315,120]
[404158710,1769886651623,-299.0,0.00049315,120]
[404158711,1769886651632,-708.0,0.00049315,120]
[404158712,1769886651641,-708.0,0.00049315,120]
[404158713,1769886651651,-299.0,0.00049315,120]
[404158714,1769886651659,-299.0,0.00049315,120]
[404158715,1769886651668,-299.0,0.00049315,120]
[404158716,1769886651678,-299.0,0.00049315,120]
[404158717,1769886651687,-299.0,0.00049315,120]
[404158718,1769886651695,-299.0,0.00049315,120]
[404158719,1769886651704,-299.0,0.00049315,120]
[404158720,1769886651714,-580.0,0.00049315,120]
[404158721,1769886651723,-580.0,0.00049315,120]
[404158722,1769886651733,-299.0,0.00049315,120]
[404158723,1769886651742,-299.0,0.00049315,120]
[404158724,1769886651751,-299.0,0.00049315,120]
[404158725,1769886651761,-299.0,0.00049315,120]
[404158726,1769886651770,-299.0,0.00049315,120]
[404158727,1769886651781,-299.0,0.00049315,120]
[404158728,1769886651790,-299.0,0.00049315,120]
[404158729,1769886651799,-772.0,0.00049315,120]
[404158730,1769886651811,-772.0,0.00049315,120]
[404158731,1769886651820,-3237.79994856,0.00049547,4]
[404158732,1769886651829,-2000.0,0.00049557,120]
[404158733,1769886651838,-21636.11,0.000497,13]
[404158734,1769886651848,-988.23950159,0.00049821,120]
[404158735,1769886651857,-199.0,0.0005,120]
[404158736,1769886651866,-160.0,0.0005,3]
[404158737,1769886651875,-1041.66666667,0.0005,120]
[404158738,1769886651884,-1041.66666667,0.0005,30]
[404158739,1769886651893,-1041.66666667,0.0005,3]
[404158740,1769886651902,-164.0,0.0005,120]
[404158741,1769886651914,-562.32,0.00050136,50]
[404158742,1769886651923,-1000.0,0.000503,60]
[404158743,1769886651932,-199.0,0.000504,120]
[404158744,1769886651941,-3237.79994856,0.0005049,4]
[404158745,1769886651951,-72443.09382589,0.000505,60]
[404158746,1769886651960,-1000.0,0.000506,60]
[404158747,1769886651971,-199.0,0.000508,120]
[404158748,1769886651983,-1000.0,0.000509,60]
[404158749,1769886651992,-562.32,0.00050958,51]
[404158750,1769886652001,-1397.0,0.00050959,120]
[404158751,1769886652010,-3000.0,0.00051,85]
[404158752,1769886652021,-5443.2,0.00051,14]
[404158753,1769886652031,-3237.79994856,0.00051,4]
[404158754,1769886652040,-3000.0,0.0005101,85]
[404158755,1769886652050,-3000.0,0.0005102,85]
[404158756,1769886652062,-3000.0,0.0005103,85]
[404158757,1769886652071,-3000.0,0.0005104,85]
[404158758,1769886652080,-3000.0,0.0005105,85]
[404158759,1769886652090,-3000.0,0.0005106,85]
[404158760,1769886652099,-5725.202912,0.0005107,85]
[404158761,1769886652108,-212.0,0.0005119,30]
[404158762,1769886652117,-1000.0,0.000512,60]
[404158763,1769886652126,-199.0,0.000512,120]
[404158764,1769886652135,-1000.0,0.000515,60]
[404158765,1769886652144,-199.0,0.000516,120]
[404158766,1769886652153,-562.32,0.0005178,52]
[404158767,1769886652162,-1000.0,0.000518,60]
[404158768,1769886652171,-199.0,0.00052,120]
[404158769,1769886652180,-1000.0,0.000521,60]
[404158770,1769886652190,-723.66252782,0.00052296,120]
[404158771,1769886652199,-1000.0,0.000524,60]
[404158772,1769886652208,-199.0,0.000524,120]
[404158773,1769886652217,-212.0,0.0005249,30]
[404158774,1769886652226,-562.50679901,0.00052602,53]
[404158775,1769886652235,-1000.0,0.000527,60]
[404158776,1769886652244,-199.0,0.000528,120]
[404158777,1769886652254,-633.6,0.00052959,120]
[404158778,1769886652265,-1000.0,0.00053,60]
[404158779,1769886652275,-199.0,0.000532,120]
[404158780,1769886652285,-1000.0,0.000533,60]
[404158781,1769886652295,-1000.0,0.000536,60]
[404158782,1769886652305,-199.0,0.000536,120]
[404158783,1769886652315,-212.0,0.0005379,30]
[404158784,1769886652324,-1000.0,0.000539,60]
[404158785,1769886652335,-199.0,0.00054,120]
[404158786,1769886652344,-1000.0,0.000542,60]
[404158787,1769886652354,-199.0,0.000544,120]
[404158788,1769886652364,-1000.0,0.000545,60]
[404158789,1769886652373,-200.0,0.00054794,120]
[404158790,1769886652382,-200.0,0.00054794,120]
[404158791,1769886652391,-200.0,0.00054794,120]
[404158792,1769886652401,-200.0,0.00054794,120]
[404158793,1769886652410,-297.74307288,0.00054794,120]
[404158794,1769886652419,-1000.0,0.000548,60]
[404158795,1769886652429,-199.0,0.000548,120]
[404158796,1769886652438,-212.0,0.0005509,120]
[404158797,1769886652448,-1000.0,0.000551,60]
[404158798,1769886652457,-199.0,0.000552,120]
[404158799,1769886652467,-150.0,0.00055206,30]
[404158800,1769886652476,-1469.95825973,0.00055351,30]
[404158801,1769886652486,-1000.0,0.000554,60]
[404158802,1769886652501,-199.0,0.000556,120]
[404158803,1769886652514,-3237.79994856,0.0005599,4]
[404158804,1769886652527,-199.0,0.00056,120]
[404158805,1769886652540,-212.0,0.000564,120]
[404158806,1769886652553,-199.0,0.000564,120]
[404158807,1769886652564,-199.0,0.000569,120]
[404158808,1769886652576,-199.0,0.000573,120]
[404158809,1769886652587,-212.0,0.000577,120]
[404158810,1769886652599,-199.0,0.000577,120]
[404158811,1769886652611,-5408.22,0.00058,14]
[404158812,1769886652624,-5443.2,0.00058,14]
[404158813,1769886652636,-199.0,0.000581,120]
[404158814,1769886652648,-199.0,0.000585,120]
[404158815,1769886652660,-199.0,0.000589,120]
[404158816,1769886652672,-212.0,0.00059,120]
[404158817,1769886652685,-1130.92400944,0.00059108,2]
[404158818,1769886652698,-199.0,0.000593,120]
[404158819,1769886652711,-199.0,0.000597,120]
[404158820,1769886652723,-423.84,0.00059861,30]
[404158821,1769886652736,-199.0,0.000601,120]
[404158822,1769886652748,-199.0,0.000605,120]
[404158823,1769886652759,-199.0,0.000609,120]
[404158824,1769886652771,-730.05,0.00061,30]
[404158825,1769886652784,-199.0,0.000613,120]
[404158826,1769886652797,-199.0,0.000617,120]
[404158827,1769886652812,-199.0,0.000621,120]
[404158828,1769886652824,-199.0,0.000625,120]
[404158829,1769886652835,-199.0,0.000629,120]
[404158830,1769886652846,-403.205,0.00063182,120]
[404158831,1769886652857,-199.0,0.000633,120]
[404158832,1769886652869,-199.0,0.000637,120]
[404158833,1769886652880,-199.0,0.000641,120]
[404158834,1769886652894,-199.0,0.000645,120]
[404158835,1769886652905,-199.0,0.000649,120]
[404158836,1769886652926,-5443.2,0.00065,14]
[404158837,1769886652950,-166.79,0.00065,2]
[404158838,1769886652967,-199.0,0.000653,120]
[404158839,1769886652986,-150.0,0.00065529,30]
[404158840,1769886652999,-199.0,0.000657,120]
[404158841,1769886653016,-5408.22,0.00066,14]
[404158842,1769886653028,-199.0,0.000661,120]
[404158843,1769886653040,-199.0,0.000665,120]
[404158844,1769886653054,-199.0,0.000669,120]
[404158845,1769886653066,-199.0,0.000673,120]
[404158846,1769886653079,-199.0,0.000677,120]
[404158847,1769886653093,-199.0,0.000681,120]
[404158848,1769886653108,-199.0,0.000685,120]
[404158849,1769886653121,-199.0,0.000689,120]
[404158850,1769886653135,-3000.0,0.00069,120]
[404158851,1769886653145,-3000.0,0.0006901,120]
[404158852,1769886653158,-3000.0,0.0006902,120]
[404158853,1769886653170,-3000.0,0.0006903,120]
[404158854,1769886653183,-3237.79994856,0.0006903,6]
[404158855,1769886653196,-4035.121747,0.0006904,120]
[404158856,1769886653210,-199.0,0.000693,120]
[404158857,1769886653222,-199.0,0.000697,120]
[404158858,1769886653233,-717.5,0.00069988,120]
[404158859,1769886653243,-558.5,0.00069988,120]
[404158860,1769886653254,-199.0,0.000701,120]
[404158861,1769886653266,-199.0,0.000706,120]
[404158862,1769886653277,-199.0,0.00071,120]
[404158863,1769886653289,-199.0,0.000714,120]
[404158864,1769886653301,-199.0,0.000718,120]
[404158865,1769886653314,-199.0,0.000722,120]
[404158866,1769886653327,-199.0,0.000726,120]
[404158867,1769886653340,-199.0,0.00073,120]
[404158868,1769886653352,-199.0,0.000734,120]
[404158869,1769886653365,-199.0,0.000738,120]
[404158870,1769886653378,-199.0,0.000742,120]
[404158871,1769886653391,-199.0,0.000746,120]
[404158872,1769886653402,-199.0,0.00075,120]